bitfinex/quotes_BTCUSD_20240703
["timestamp","ask_amount","ask_price","bid_price","bid_amount"]
[1720017495028,0.237,60440.0,60434.0,0.036843]
[1720017495227,0.237,60440.0,60435.0,0.036843]
[1720017495228,0.16311604,60439.0,60435.0,0.036843]
[1720017495428,0.06311604,60438.0,60436.0,0.036843]
[1720017495646,0.06301604,60437.0,60436.0,0.036843]
[1720017495902,0.01235067,60437.0,60435.0,0.036843]
[1720017496049,0.1,60439.0,60436.0,0.036843]
[1720017496250,0.012462,60438.0,60436.0,0.036843]
[1720017496451,0.1,60440.0,60436.0,0.036843]
[1720017496452,0.012362,60437.0,60436.0,0.036843]
[1720017496655,0.012262,60437.0,60436.0,0.036843]
[1720017497285,0.012262,60437.0,60434.0,0.036843]
[1720017497594,0.1,60440.0,60434.0,0.036843]
[1720017497822,0.0999,60440.0,60434.0,0.021843]
[1720017498028,0.0999,60440.0,60435.0,0.021843]
[1720017498237,0.10043295,60439.0,60434.0,0.021843]
[1720017498357,0.10043295,60439.0,60431.0,0.021843]
[1720017498358,0.237,60436.0,60431.0,0.021843]
[1720017498833,0.237,60436.0,60430.0,0.021843]
[1720017499033,0.237,60436.0,60431.0,0.021843]
[1720017500029,0.1,60435.0,60431.0,0.021843]
[1720017500204,0.1,60435.0,60434.0,0.08015582]
[1720017500419,0.1,60435.0,60434.0,0.10199882]
[1720017500630,0.1,60435.0,60434.0,0.08015582]
[1720017500831,0.1,60435.0,60434.0,0.10199882]
[1720017501031,0.1,60435.0,60434.0,0.08015582]
[1720017501694,0.1,60435.0,60431.0,0.021843]
[1720017502010,0.1,60435.0,60434.0,0.003]
[1720017502586,0.1,60435.0,60430.0,0.03205439]
[1720017502587,0.1,60435.0,60432.0,0.021843]
[1720017502790,0.1,60435.0,60427.0,0.20325582]
[1720017502791,0.1,60435.0,60431.0,0.024843]
[1720017503790,0.05418134,60434.0,60431.0,0.024843]
[1720017503995,0.05418134,60433.0,60431.0,0.024843]
[1720017504193,0.05418134,60432.0,60431.0,0.026843]
[1720017504422,0.1,60435.0,60434.0,0.021843]
[1720017504945,0.1,60435.0,60434.0,0.024843]
[1720017505387,0.1,60435.0,60434.0,0.021843]
[1720017506764,0.11589759,60435.0,60434.0,0.021843]
[1720017507741,0.11589759,60435.0,60434.0,0.024843]
[1720017507963,0.11585677,60435.0,60434.0,0.024843]
[1720017509074,0.11585677,60435.0,60434.0,0.027843]
[1720017509223,0.11585677,60435.0,60434.0,0.006]
[1720017509977,0.2133103,60435.0,60434.0,0.006]
[1720017510200,0.2142103,60435.0,60434.0,0.006]
[1720017511133,0.11589714,60435.0,60434.0,0.006]
[1720017511373,0.21368703,60435.0,60434.0,0.006]
[1720017512322,0.26707169,60435.0,60434.0,0.006]
[1720017514508,0.64160775,60435.0,60434.0,0.006]
[1720017514710,0.816153,60435.0,60434.0,0.006]
[1720017515065,1.07502877,60435.0,60434.0,0.006]
[1720017515209,1.07502877,60435.0,60434.0,0.003]
[1720017515613,1.08102877,60435.0,60434.0,0.004]
[1720017515808,1.059153,60435.0,60434.0,0.004]
[1720017516252,0.579572,60435.0,60434.0,0.003]
[1720017516453,0.816572,60435.0,60434.0,0.003]
[1720017516633,0.830572,60435.0,60434.0,0.004]
[1720017517471,0.830572,60435.0,60434.0,0.001]
[1720017517705,0.83453112,60435.0,60434.0,0.001]
[1720017517916,0.69629712,60435.0,60434.0,0.002]
[1720017518032,0.12,60435.0,60434.0,0.002]
[1720017518233,0.11314101,60435.0,60434.0,0.001]
[1720017518434,0.28462436,60435.0,60434.0,0.001]
[1720017518748,0.28462436,60435.0,60434.0,0.002]
[1720017518749,0.29862436,60435.0,60434.0,0.002]
[1720017519365,0.19848335,60435.0,60434.0,0.002]
[1720017520479,0.29769379,60435.0,60434.0,0.002]
[1720017521014,0.19861754,60435.0,60434.0,0.002]
[1720017521696,0.29872252,60435.0,60434.0,0.002]
[1720017522257,0.30622252,60435.0,60434.0,0.002]
[1720017522968,0.36527289,60435.0,60434.0,0.002]
[1720017523395,1.72502232,60435.0,60434.0,0.002]
[1720017523798,1.61883632,60435.0,60434.0,0.002]
[1720017524323,0.99697632,60435.0,60434.0,0.002]
[1720017525261,0.98397632,60435.0,60434.0,0.001]
[1720017525466,0.99597632,60435.0,60434.0,0.002]
[1720017525941,0.99507632,60435.0,60434.0,0.002]
[1720017526085,0.98307632,60435.0,60434.0,0.001]
[1720017526284,0.99597632,60435.0,60434.0,0.002]
[1720017526507,0.99597632,60435.0,60434.0,0.001]
[1720017526711,0.98107632,60435.0,60434.0,0.001]
[1720017527008,0.59456652,60435.0,60434.0,0.002]
[1720017527422,0.55866967,60435.0,60434.0,0.001]
[1720017527924,0.57166967,60435.0,60434.0,0.002]
[1720017528165,0.27292567,60435.0,60434.0,0.023843]
[1720017528376,0.27292567,60435.0,60434.0,0.05589739]
[1720017529486,0.27292567,60435.0,60434.0,0.16339739]
[1720017529830,0.15638596,60435.0,60434.0,0.24959739]
[1720017530037,0.15638596,60435.0,60434.0,0.41089619]
[1720017530038,0.05638596,60435.0,60434.0,0.41089619]
[1720017530233,0.06338596,60435.0,60434.0,0.41089619]
[1720017530651,0.02523877,60435.0,60434.0,0.41189619]
[1720017530985,0.02523877,60435.0,60434.0,0.41089619]
[1720017530986,0.007,60435.0,60434.0,0.41089619]
[1720017531186,0.05629084,60435.0,60434.0,0.41089619]
[1720017531525,0.04929084,60435.0,60434.0,0.44289619]
[1720017531760,0.03905209,60435.0,60434.0,0.43989619]
[1720017531962,0.00083,60439.0,60438.0,0.05389739]
[1720017532100,0.00083,60439.0,60438.0,0.25329739]
[1720017532739,0.05004889,60439.0,60438.0,0.25329739]
[1720017533099,0.05004889,60439.0,60438.0,0.41690512]
[1720017533318,0.05004889,60439.0,60438.0,0.44990512]
[1720017533536,0.05004889,60439.0,60438.0,0.44659619]
[1720017533741,0.00083,60439.0,60438.0,0.44659619]
[1720017534894,0.00083,60439.0,60438.0,0.44959619]
[1720017535681,0.0165,60455.0,60449.0,0.24059739]
[1720017535866,0.03987194,60450.0,60449.0,0.24059739]
[1720017536069,0.00084,60450.0,60449.0,0.24059739]
[1720017538309,0.00184,60450.0,60449.0,0.24059739]
[1720017538717,0.00084,60450.0,60449.0,0.208543]
[1720017539075,0.00084,60450.0,60449.0,0.24459739]
[1720017540243,0.00184,60450.0,60449.0,0.24459739]
[1720017541052,0.00084,60450.0,60449.0,0.24459739]
[1720017542144,0.00084,60450.0,60449.0,0.24859739]
[1720017542831,0.00084,60450.0,60449.0,0.029843]
[1720017542832,0.03912372,60450.0,60449.0,0.029843]
[1720017543044,0.03912372,60450.0,60449.0,0.008]
[1720017543244,0.03913253,60450.0,60449.0,0.008]
[1720017543639,0.03913253,60450.0,60449.0,0.029843]
[1720017543872,0.03913253,60450.0,60449.0,0.008]
[1720017543981,0.03913253,60450.0,60449.0,0.004]
[1720017544620,0.03913253,60450.0,60445.0,0.021843]
[1720017544866,0.27529253,60449.0,60445.0,0.021843]
[1720017545129,0.13829253,60448.0,60445.0,0.021843]
[1720017545292,0.03829253,60447.0,60445.0,0.021843]
[1720017545491,0.03829253,60446.0,60445.0,0.021843]
[1720017545868,0.1,60448.0,60445.0,0.021843]
[1720017546152,0.03221179,60447.0,60445.0,0.021843]
[1720017546356,0.03221179,60446.0,60445.0,0.021843]
[1720017546594,0.03221179,60446.0,60437.0,0.021843]
[1720017546595,0.03311179,60446.0,60437.0,0.021843]
[1720017546793,0.1,60448.0,60442.0,0.021843]
[1720017546794,0.237,60444.0,60442.0,0.021843]
[1720017547117,0.13221179,60443.0,60442.0,0.021843]
[1720017547948,0.13221179,60443.0,60438.0,0.021843]
[1720017548157,0.13221179,60443.0,60440.0,0.021843]
[1720017548158,0.03221179,60442.0,60440.0,0.021843]
[1720017549117,0.03221179,60442.0,60441.0,0.021843]
[1720017549488,0.03245194,60442.0,60441.0,0.021843]
[1720017549686,0.03345194,60442.0,60441.0,0.021843]
[1720017550050,0.03445194,60442.0,60441.0,0.021843]
[1720017550252,0.03345194,60442.0,60441.0,0.021843]
[1720017550640,0.03445194,60442.0,60441.0,0.028843]
[1720017551543,0.03345194,60442.0,60441.0,0.028843]
[1720017551784,0.03445194,60442.0,60441.0,0.034843]
[1720017552184,0.03445194,60442.0,60441.0,0.06689739]
[1720017552388,0.03445194,60442.0,60441.0,0.32165321]
[1720017552594,0.002,60442.0,60441.0,0.32165321]
[1720017552841,0.03434539,60442.0,60441.0,0.32165321]
[1720017552967,0.03434544,60442.0,60441.0,0.32165321]
[1720017553800,0.03434544,60442.0,60441.0,0.209443]
[1720017554000,0.03434544,60442.0,60441.0,0.034843]
[1720017555523,0.03434544,60442.0,60441.0,0.013]
[1720017556049,0.03440658,60442.0,60441.0,0.013]
[1720017556268,0.03440658,60442.0,60441.0,0.005482]
[1720017556442,0.002,60442.0,60441.0,0.005482]
[1720017556665,0.03441355,60442.0,60441.0,0.005482]
[1720017558632,0.03341355,60442.0,60441.0,0.005482]
[1720017558959,0.03341355,60442.0,60441.0,0.027325]
[1720017559160,0.1,60443.0,60442.0,0.198143]
[1720017559387,0.12770254,60448.0,60443.0,0.021843]
[1720017559580,0.11089643,60447.0,60442.0,0.198143]
[1720017559789,0.13184407,60446.0,60442.0,0.198143]
[1720017560124,0.03184407,60445.0,60444.0,0.05389739]
[1720017560475,0.03184407,60445.0,60442.0,0.198143]
[1720017560476,0.03164909,60445.0,60442.0,0.198143]
[1720017560680,0.03164909,60444.0,60442.0,0.116243]
[1720017560907,0.03164909,60443.0,60442.0,0.0944]
[1720017561114,0.237,60444.0,60442.0,0.0944]
[1720017561305,0.001,60442.0,60439.0,0.1784]
[1720017561504,0.03164909,60441.0,60439.0,0.1784]
[1720017562079,0.03164909,60440.0,60439.0,0.1784]
[1720017562284,0.105,60443.0,60440.0,0.021843]
[1720017562498,0.03214397,60442.0,60440.0,0.021843]
[1720017562699,0.03214397,60441.0,60439.0,0.0974]
[1720017562908,0.03214397,60440.0,60438.0,0.0001]
[1720017563118,0.26914397,60439.0,60438.0,0.021943]
[1720017563315,0.36914397,60439.0,60438.0,0.021943]
[1720017564321,0.13214397,60439.0,60438.0,0.05389739]
[1720017564522,0.13214397,60439.0,60438.0,0.021843]
[1720017565345,0.13214397,60439.0,60438.0,0.05389739]
[1720017565809,0.1,60443.0,60438.0,0.05689739]
[1720017566016,0.1,60443.0,60442.0,0.021843]
[1720017566226,0.1,60443.0,60438.0,0.024843]
[1720017566399,0.03178395,60442.0,60438.0,0.024843]
[1720017566601,0.03178395,60441.0,60438.0,0.024843]
[1720017566833,0.03178395,60440.0,60438.0,0.003]
[1720017567039,0.03178395,60439.0,60438.0,0.024843]
[1720017567209,0.03178395,60439.0,60438.0,0.026843]
[1720017567575,0.03178395,60439.0,60435.0,0.098713]
[1720017567783,0.03178395,60438.0,60435.0,0.098713]
[1720017567963,0.03178395,60437.0,60435.0,0.098713]
[1720017568163,0.03178395,60436.0,60435.0,0.098713]
[1720017569068,0.1,60438.0,60435.0,0.120556]
[1720017569284,0.1,60438.0,60437.0,0.021843]
[1720017569486,0.13205142,60438.0,60436.0,0.021843]
[1720017569710,0.03205098,60437.0,60436.0,0.021843]
[1720017570096,0.03205098,60437.0,60435.0,0.120556]
[1720017570317,0.03205098,60436.0,60435.0,0.120556]
[1720017570513,0.03205098,60436.0,60435.0,0.123556]
[1720017570916,0.03205098,60436.0,60435.0,0.125556]
[1720017571254,0.03205098,60436.0,60435.0,0.123556]
[1720017571653,0.03205098,60436.0,60435.0,0.127556]
[1720017572079,0.03205098,60436.0,60435.0,0.123556]
[1720017572287,0.03195098,60436.0,60435.0,0.123556]
[1720017572410,0.03182629,60436.0,60435.0,0.123556]
[1720017572613,0.03282629,60436.0,60435.0,0.126556]
[1720017573303,0.03282629,60436.0,60435.0,0.104713]
[1720017573506,0.03282629,60436.0,60435.0,0.126556]
[1720017573681,0.03382629,60436.0,60435.0,0.111713]
[1720017573884,0.03382629,60436.0,60435.0,0.013913]
[1720017574319,0.11358884,60436.0,60435.0,0.013913]
[1720017574493,0.21268884,60436.0,60435.0,0.013913]
[1720017574700,0.21358884,60436.0,60435.0,0.013913]
[1720017575481,0.18086255,60436.0,60435.0,0.013913]
[1720017575682,0.12348481,60436.0,60435.0,0.013913]
[1720017575999,0.22348481,60436.0,60435.0,0.013913]
[1720017576186,0.22338481,60436.0,60435.0,0.013913]
[1720017577104,0.22428481,60436.0,60435.0,0.013913]
[1720017578250,0.43352967,60436.0,60435.0,0.013913]
[1720017578406,0.45198015,60436.0,60435.0,0.013913]
[1720017578751,0.45065531,60436.0,60435.0,0.013913]
[1720017578948,0.40080925,60436.0,60435.0,0.013913]
[1720017579334,0.40170925,60436.0,60435.0,0.013913]
[1720017579739,0.38315877,60436.0,60435.0,0.013913]
[1720017579901,0.22195997,60436.0,60435.0,0.013913]
[1720017581410,0.23220135,60436.0,60435.0,0.013913]
[1720017581999,0.23657984,60436.0,60435.0,0.014013]
[1720017582610,0.23729866,60436.0,60435.0,0.014013]
[1720017584272,0.23819866,60436.0,60435.0,0.014013]
[1720017584899,0.39849746,60436.0,60435.0,0.014013]
[1720017585790,0.39749746,60436.0,60435.0,0.007013]
[1720017586188,0.39849746,60436.0,60435.0,0.007013]
[1720017586581,0.39759746,60436.0,60435.0,0.007013]
[1720017586777,0.23729866,60436.0,60435.0,0.007013]
[1720017587418,0.23649866,60436.0,60435.0,0.001013]
[1720017587825,0.23849866,60436.0,60435.0,0.001013]
[1720017588026,0.1,60436.0,60435.0,0.001013]
[1720017588420,0.166316,60436.0,60435.0,0.001013]
[1720017589003,0.066316,60436.0,60435.0,0.001013]
[1720017590664,0.0009,60435.0,60431.0,0.000913]
[1720017590865,0.237,60432.0,60431.0,0.000913]
[1720017591063,0.337,60432.0,60431.0,0.000913]
[1720017592444,1.153522,60432.0,60431.0,0.000913]
[1720017592647,1.153522,60432.0,60431.0,0.008913]
[1720017592648,1.034182,60432.0,60431.0,0.008913]
[1720017592858,1.016382,60432.0,60431.0,0.008913]
[1720017593434,1.016382,60432.0,60431.0,0.004913]
[1720017593635,1.017282,60432.0,60431.0,0.004913]
[1720017593831,1.09425116,60432.0,60431.0,0.004913]
[1720017595056,1.09425116,60432.0,60431.0,0.005013]
[1720017595057,1.021282,60432.0,60431.0,0.005013]
[1720017595283,1.09430268,60432.0,60431.0,0.005013]
[1720017595617,1.021282,60432.0,60431.0,0.005013]
[1720017595820,1.09942049,60432.0,60431.0,0.005013]
[1720017595939,1.13013741,60432.0,60431.0,0.005013]
[1720017596379,1.29043621,60432.0,60431.0,0.005013]
[1720017597068,1.29043621,60432.0,60431.0,0.001013]
[1720017597698,1.29443621,60432.0,60431.0,0.001013]
[1720017598306,1.29441381,60432.0,60431.0,0.001013]
[1720017598687,1.29041381,60432.0,60431.0,0.001013]
[1720017599049,1.29641381,60432.0,60431.0,0.002013]
[1720017599443,1.29241381,60432.0,60431.0,0.002013]
[1720017600421,1.32185989,60432.0,60431.0,0.002013]
[1720017600643,1.76037995,60432.0,60431.0,0.002013]
[1720017601047,0.0009,60427.0,60426.0,0.001224]
[1720017601248,0.0009,60421.0,60417.0,0.0957]
[1720017601449,0.237,60418.0,60417.0,0.0957]
[1720017601627,0.36792824,60418.0,60417.0,0.0957]
[1720017601826,0.36792824,60418.0,60412.0,0.10199882]
[1720017601827,0.61287224,60418.0,60412.0,0.10199882]
[1720017602052,0.13102824,60417.0,60412.0,0.10199882]
[1720017602255,0.03102824,60416.0,60412.0,0.10199882]
[1720017602411,0.1,60417.0,60412.0,0.10199882]
[1720017602412,0.10939349,60415.0,60412.0,0.10199882]
[1720017602634,0.10939349,60415.0,60412.0,0.08015582]
[1720017602635,0.13102824,60414.0,60412.0,0.08015582]
[1720017602845,0.03102824,60413.0,60412.0,0.08015582]
[1720017603606,1.24679724,60413.0,60407.0,0.021843]
[1720017603814,0.64713049,60412.0,60407.0,0.021843]
[1720017603934,0.64713049,60412.0,60405.0,0.21011021]
[1720017603935,0.1,60411.0,60410.0,0.119743]
[1720017604135,0.2178402,60411.0,60410.0,0.119743]
[1720017604560,0.2178402,60411.0,60410.0,0.22879739]
[1720017604770,0.13553346,60411.0,60410.0,0.22879739]
[1720017604969,0.03553346,60411.0,60410.0,0.23210804]
[1720017605173,0.03553346,60411.0,60410.0,0.39240661]
[1720017605376,0.03553346,60411.0,60410.0,0.38909619]
[1720017605790,0.001,60414.0,60413.0,0.08389739]
[1720017605995,0.001,60414.0,60413.0,0.25309739]
[1720017606412,0.001,60414.0,60413.0,0.41670643]
[1720017607211,0.237,60431.0,60428.0,0.021843]
[1720017607417,0.04419954,60429.0,60427.0,0.0734]
[1720017607780,0.0165,60429.0,60428.0,0.021843]
[1720017607941,0.04549449,60429.0,60428.0,0.021843]
[1720017608124,0.04549449,60429.0,60428.0,0.23195321]
[1720017608328,0.04549449,60429.0,60428.0,0.30515321]
[1720017609573,0.02399449,60429.0,60428.0,0.30515321]
[1720017609737,0.02697017,60431.0,60430.0,0.05389739]
[1720017609942,0.066316,60436.0,60430.0,0.22189739]
[1720017610164,0.066316,60436.0,60432.0,0.021843]
[1720017610367,0.09364673,60436.0,60432.0,0.021843]
[1720017610546,0.19364673,60436.0,60432.0,0.021843]
[1720017610746,0.19364673,60436.0,60431.0,0.021843]
[1720017610925,0.19364673,60436.0,60432.0,0.021843]
[1720017611121,0.19364673,60436.0,60428.0,0.001]
[1720017611363,0.237,60429.0,60428.0,0.001]
[1720017611564,0.805161,60429.0,60425.0,0.116843]
[1720017611892,0.0999,60428.0,60425.0,0.116843]
[1720017612560,0.0999,60428.0,60427.0,0.021843]
[1720017613530,0.0999,60428.0,60427.0,0.04889739]
[1720017614233,0.01384,60429.0,60428.0,0.016843]
[1720017614435,0.01384,60429.0,60428.0,0.191943]
[1720017614638,0.01384,60429.0,60425.0,0.018843]
[1720017614841,0.00084,60429.0,60425.0,0.016843]
[1720017615052,0.005,60428.0,60425.0,0.016843]
[1720017615245,0.01,60428.0,60427.0,0.001]
[1720017615512,0.01,60428.0,60427.0,0.017843]
[1720017615665,0.005,60428.0,60427.0,0.04989739]
[1720017615881,0.0049,60428.0,60427.0,0.21589739]
[1720017616080,0.00684,60429.0,60428.0,0.016843]
[1720017617275,0.03409185,60429.0,60428.0,0.016843]
[1720017617660,0.06795164,60429.0,60428.0,0.016843]
[1720017617832,0.06795164,60429.0,60428.0,0.21879739]
[1720017618396,0.07495164,60429.0,60428.0,0.21979739]
[1720017618605,0.06895164,60429.0,60428.0,0.21979739]
[1720017619009,0.06895164,60429.0,60428.0,0.21989739]
[1720017619203,0.30595164,60429.0,60428.0,0.0011]
[1720017619417,0.40595164,60429.0,60428.0,0.0011]
[1720017619818,0.41195164,60429.0,60428.0,0.0021]
[1720017620248,0.41220592,60429.0,60428.0,0.0021]
[1720017620620,0.51467741,60429.0,60428.0,0.0021]
[1720017620824,0.5137782,60429.0,60428.0,0.0021]
[1720017621032,0.674977,60429.0,60428.0,0.0021]
[1720017621427,0.674077,60429.0,60428.0,0.0021]
[1720017621723,0.5137782,60429.0,60428.0,0.0021]
[1720017622445,0.16365907,60429.0,60428.0,0.22139739]
[1720017622847,0.06365907,60429.0,60428.0,0.22139739]
[1720017623573,0.06894802,60429.0,60428.0,0.22139739]
[1720017624471,0.06894802,60429.0,60428.0,0.018943]
[1720017624628,0.06894802,60429.0,60428.0,0.05099739]
[1720017625039,0.06894802,60429.0,60428.0,0.0021]
[1720017625240,0.06894802,60429.0,60428.0,1e-08]
[1720017625241,1.22123349,60429.0,60428.0,1e-08]
[1720017625444,1.277644,60428.0,60415.0,0.097]
[1720017625647,0.31630682,60427.0,60418.0,0.016843]
[1720017625853,0.237,60419.0,60418.0,0.016843]
[1720017626051,0.15510802,60419.0,60418.0,0.016843]
[1720017626234,0.15510802,60419.0,60418.0,0.04889739]
[1720017626434,0.15510802,60419.0,60418.0,0.21429739]
[1720017626674,0.1,60419.0,60418.0,0.21429739]
[1720017626891,0.16203123,60419.0,60418.0,0.21429739]
[1720017627294,0.06203123,60419.0,60418.0,0.21429739]
[1720017627511,0.06203965,60422.0,60421.0,0.016843]
[1720017627727,0.06252523,60422.0,60420.0,0.016843]
[1720017627855,0.06252523,60421.0,60419.0,0.016843]
[1720017628064,0.06252523,60420.0,60419.0,0.016843]
[1720017628474,0.06252523,60420.0,60418.0,0.182243]
[1720017628679,0.06252523,60419.0,60418.0,0.1654]
[1720017628909,0.06352523,60419.0,60418.0,0.1724]
[1720017629285,0.06352523,60419.0,60418.0,0.189243]
[1720017629610,0.06252523,60419.0,60418.0,0.182243]
[1720017630031,0.0617042,60419.0,60418.0,0.182243]
[1720017630430,0.0617042,60422.0,60418.0,0.182243]
[1720017630731,0.0617042,60421.0,60418.0,0.182243]
[1720017630968,0.01166996,60420.0,60418.0,0.1654]
[1720017631147,0.01166996,60419.0,60418.0,0.089]
[1720017631573,0.0009,60417.0,60414.0,0.000924]
[1720017631743,0.0009,60411.0,60408.0,0.02518119]
[1720017631944,0.95991376,60416.0,60408.0,0.02518119]
[1720017631945,0.237,60409.0,60408.0,0.02518119]
[1720017632108,0.34364124,60409.0,60408.0,0.02518119]
[1720017632537,0.44364124,60409.0,60408.0,0.02518119]
[1720017633141,0.337,60409.0,60408.0,0.02518119]
[1720017633349,0.45418372,60409.0,60408.0,0.02518119]
[1720017633764,0.35437319,60409.0,60408.0,0.02918119]
[1720017634003,0.45377928,60409.0,60408.0,0.02918119]
[1720017634202,0.45367928,60409.0,60408.0,0.02918119]
[1720017634600,0.45367928,60409.0,60408.0,0.03218119]
[1720017635012,0.45367928,60409.0,60408.0,0.04902419]
[1720017635246,0.35427319,60409.0,60408.0,0.04602419]
[1720017635677,0.35527319,60409.0,60408.0,0.02918119]
[1720017636073,0.35527319,60409.0,60408.0,0.04602419]
[1720017636234,0.3379,60409.0,60408.0,0.02918119]
[1720017636433,0.35492321,60409.0,60408.0,0.02918119]
[1720017637429,0.11802321,60409.0,60408.0,0.04602419]
[1720017637678,0.04620759,60409.0,60408.0,0.07807858]
[1720017637876,0.04610759,60409.0,60408.0,0.24267858]
[1720017638087,0.10147143,60409.0,60408.0,0.24267858]
[1720017638320,0.20147143,60409.0,60408.0,0.24267858]
[1720017638930,0.17328705,60409.0,60408.0,0.24267858]
[1720017639510,0.17683268,60409.0,60408.0,0.24267858]
[1720017640752,0.07683268,60409.0,60408.0,0.24267858]
[1720017641786,0.07683268,60409.0,60408.0,0.21062419]
[1720017641994,0.07683268,60409.0,60408.0,0.24267858]
[1720017642383,0.07683268,60409.0,60408.0,0.24277858]
[1720017642577,0.0009,60409.0,60408.0,0.24277858]
[1720017642952,0.07686372,60409.0,60408.0,0.24277858]
[1720017643283,0.15124792,60419.0,60415.0,0.016843]
[1720017643534,0.10116854,60418.0,60415.0,0.016843]
[1720017644386,0.10116854,60418.0,60414.0,0.016843]
[1720017644923,0.15124792,60419.0,60414.0,0.016843]
[1720017645123,0.16024792,60419.0,60415.0,0.1706]
[1720017645331,0.09443855,60418.0,60415.0,0.187443]
[1720017645533,0.19443855,60418.0,60415.0,0.187443]
[1720017645731,0.19443855,60418.0,60415.0,0.186443]
[1720017645948,0.1,60418.0,60415.0,0.186443]
[1720017646158,0.107,60418.0,60417.0,0.016843]
[1720017646545,0.107,60418.0,60415.0,0.20165439]
[1720017646546,0.1,60418.0,60415.0,0.186443]
[1720017646750,0.1,60418.0,60417.0,0.016843]
[1720017646951,0.1,60418.0,60417.0,0.04889739]
[1720017647216,0.02767978,60419.0,60418.0,0.016843]
[1720017647389,0.02767978,60419.0,60417.0,0.03205439]
[1720017647390,0.03667978,60419.0,60417.0,0.016843]
[1720017647598,0.03667978,60419.0,60415.0,0.186443]
[1720017647599,0.009,60419.0,60415.0,0.186443]
[1720017647939,0.007,60418.0,60415.0,0.187443]
[1720017648540,0.009,60419.0,60415.0,0.186443]
[1720017648745,0.018,60419.0,60415.0,0.187443]
[1720017648954,0.118,60419.0,60415.0,0.187443]
[1720017649391,0.0009,60417.0,60409.0,0.016843]
[1720017649561,0.0009,60417.0,60412.0,0.016843]
[1720017649562,0.237,60414.0,60412.0,0.016843]
[1720017649764,0.1,60413.0,60412.0,0.016843]
[1720017650011,0.1,60413.0,60408.0,0.04212419]
[1720017650186,0.1,60413.0,60409.0,0.016843]
[1720017651274,0.04914765,60412.0,60409.0,0.016843]
[1720017651477,0.04914765,60411.0,60409.0,0.016843]
[1720017651669,0.04914765,60410.0,60409.0,0.016843]
[1720017652454,0.1,60413.0,60408.0,0.02528119]
[1720017652455,0.1009,60413.0,60408.0,0.02528119]
[1720017652659,0.04924393,60410.0,60408.0,0.02528119]
[1720017652863,0.0009,60411.0,60409.0,0.001]
[1720017653064,0.0942418,60412.0,60409.0,0.001]
[1720017653065,1.42717982,60410.0,60409.0,0.001]
[1720017653265,0.83811018,60410.0,60409.0,0.001]
[1720017653411,0.0009,60409.0,60408.0,0.02528119]
[1720017653758,0.89761818,60409.0,60408.0,0.02528119]
[1720017654142,0.97954198,60409.0,60408.0,0.02518119]
[1720017654351,1.00089183,60409.0,60408.0,0.02518119]
[1720017654550,1.00089183,60409.0,60408.0,0.02818119]
[1720017655129,1.00089183,60409.0,60408.0,0.02518119]
[1720017655703,0.73604185,60409.0,60408.0,0.02518119]
[1720017655903,0.87178876,60409.0,60408.0,0.02518119]
[1720017656383,0.87178876,60409.0,60408.0,0.03318119]
[1720017656816,0.87088876,60409.0,60408.0,0.03318119]
[1720017656933,0.87178876,60409.0,60408.0,0.03318119]
[1720017658979,0.82164,60409.0,60408.0,0.03318119]
[1720017659180,0.87141562,60409.0,60408.0,0.03318119]
[1720017659582,0.87042837,60409.0,60408.0,0.03318119]
[1720017660186,1.17143571,60409.0,60408.0,0.03318119]
[1720017660412,1.17143571,60409.0,60408.0,0.03310363]
[1720017660607,1.03072717,60409.0,60408.0,0.03310363]
[1720017661295,1.03072717,60409.0,60408.0,0.03320363]
[1720017661498,1.02752648,60409.0,60408.0,0.03320363]
[1720017662316,1.02760551,60409.0,60408.0,0.03320363]
[1720017662633,0.85769051,60409.0,60408.0,0.03320363]
[1720017664020,0.85769051,60409.0,60408.0,0.03310363]
[1720017665044,0.85679051,60409.0,60408.0,0.03310363]
[1720017665219,0.81505271,60409.0,60408.0,0.03310363]
[1720017665492,0.54453471,60409.0,60408.0,0.03310363]
[1720017666413,0.15171471,60409.0,60408.0,0.03310363]
[1720017666647,0.50483971,60409.0,60408.0,0.03310363]
[1720017667914,0.50905688,60409.0,60408.0,0.03310363]
[1720017668119,0.60905688,60409.0,60408.0,0.03310363]
[1720017668318,0.67170257,60409.0,60408.0,0.03310363]
[1720017668734,0.67260257,60409.0,60408.0,0.03310363]
[1720017668957,0.67260257,60409.0,60408.0,0.03177221]
[1720017669751,0.60995688,60409.0,60408.0,0.03177221]
[1720017670130,0.37205688,60409.0,60408.0,0.03177221]
[1720017670331,0.25593188,60409.0,60408.0,0.19947221]
[1720017670710,0.25593188,60409.0,60408.0,0.19957221]
[1720017670918,0.25593188,60409.0,60408.0,0.21641521]
[1720017671126,0.1,60409.0,60408.0,0.21641521]
[1720017671340,0.1,60409.0,60408.0,0.19957221]
[1720017671341,0.15519324,60409.0,60408.0,0.19957221]
[1720017671511,0.1,60409.0,60408.0,0.2484696]
[1720017671667,0.25519235,60409.0,60408.0,0.2484696]
[1720017672112,0.25519235,60409.0,60408.0,0.19957221]
[1720017672359,0.24407178,60409.0,60408.0,0.19957221]
[1720017672973,0.14956,60409.0,60408.0,0.19957221]
[1720017673170,0.04956,60409.0,60408.0,0.19957221]
[1720017674427,0.1137124,60409.0,60408.0,0.19957221]
[1720017674627,0.2137124,60409.0,60408.0,0.19957221]
[1720017675028,0.2137124,60409.0,60408.0,0.21641521]
[1720017675993,0.2137124,60409.0,60408.0,0.19957221]
[1720017677725,0.1,60409.0,60408.0,0.19957221]
[1720017677910,0.07969231,60409.0,60408.0,0.19957221]
[1720017678105,0.11233942,60409.0,60408.0,0.19957221]
[1720017678307,0.21233942,60409.0,60408.0,0.19957221]
[1720017678768,0.62891942,60409.0,60408.0,0.03187221]
[1720017678947,1.21250842,60409.0,60408.0,0.03187221]
[1720017679531,1.21424842,60409.0,60408.0,0.03187221]
[1720017679714,0.65341042,60409.0,60408.0,0.03187221]
[1720017679921,0.35046542,60409.0,60408.0,0.03187221]
[1720017680926,0.238126,60409.0,60408.0,0.03187221]
[1720017681661,0.31685542,60409.0,60408.0,0.03187221]
[1720017682010,0.34840981,60409.0,60408.0,0.03187221]
[1720017682798,0.34840981,60409.0,60408.0,0.04871521]